bitfinex/quotes_BTCUSD_20250529
["timestamp","ask_amount","ask_price","bid_price","bid_amount"]
[1748528166462,6.00603175,107360.0,107350.0,9.25523731]
[1748528166684,6.00603168,107360.0,107350.0,9.25523731]
[1748528166922,5.9996467,107360.0,107350.0,9.23409889]
[1748528167140,6.00604725,107360.0,107350.0,9.23409889]
[1748528167358,6.0188483,107360.0,107350.0,9.23409889]
[1748528167592,6.01884827,107360.0,107350.0,9.23409889]
[1748528167832,6.45346222,107360.0,107350.0,2.29175651]
[1748528168065,6.45346222,107360.0,107330.0,7.91800405]
[1748528168066,0.83563984,107340.0,107330.0,7.91800405]
[1748528168289,6.29051382,107340.0,107330.0,7.81734247]
[1748528168516,6.29051382,107340.0,107330.0,7.78924225]
[1748528168517,6.74490917,107340.0,107330.0,7.78924225]
[1748528168755,6.31218917,107340.0,107330.0,7.76738706]
[1748528168975,7.05518648,107340.0,107330.0,7.73442668]
[1748528169193,6.99724257,107340.0,107330.0,7.73442668]
[1748528169426,1.50862857,107340.0,107330.0,7.73319558]
[1748528169650,6.39514865,107340.0,107330.0,7.73319558]
[1748528169869,5.96962865,107340.0,107330.0,7.73319558]
[1748528170117,5.96962143,107340.0,107330.0,7.73319558]
[1748528170343,6.41078143,107340.0,107330.0,7.73319558]
[1748528170566,6.48096406,107340.0,107330.0,7.73319558]
[1748528170795,6.85128255,107340.0,107330.0,7.73319558]
[1748528171020,6.85128271,107340.0,107330.0,7.73319558]
[1748528171244,6.85127822,107340.0,107330.0,7.73319558]
[1748528171464,1.82838925,107340.0,107330.0,7.73319558]
[1748528171674,6.87838925,107340.0,107330.0,7.73319558]
[1748528171891,6.87838632,107340.0,107330.0,7.73319558]
[1748528172326,6.87838607,107340.0,107330.0,7.73319558]
[1748528172547,6.85127495,107340.0,107330.0,7.73319558]
[1748528173056,6.84490698,107340.0,107330.0,7.73319558]
[1748528173296,6.85127991,107340.0,107330.0,7.73319558]
[1748528173504,6.85127971,107340.0,107330.0,7.73319558]
[1748528173954,6.85128193,107340.0,107330.0,7.73319558]
[1748528174171,1.47683475,107340.0,107330.0,7.73319558]
[1748528174391,1.51128062,107340.0,107330.0,7.73319558]
[1748528174622,1.78806374,107340.0,107330.0,7.73319558]
[1748528174837,1.81613606,107340.0,107330.0,7.73319558]
[1748528175058,6.90513606,107340.0,107330.0,7.73319558]
[1748528175490,6.88376195,107340.0,107330.0,7.72573567]
[1748528175708,6.89013502,107340.0,107330.0,7.72573567]
[1748528175917,6.91913504,107340.0,107330.0,7.71827576]
[1748528176143,6.91276195,107340.0,107330.0,7.71081645]
[1748528176361,6.90313418,107340.0,107330.0,7.71081645]
[1748528176623,6.92013418,107340.0,107330.0,7.70335714]
[1748528176841,6.94724521,107340.0,107330.0,7.69631252]
[1748528177068,6.92787298,107340.0,107330.0,7.68885321]
[1748528177311,6.93424483,107340.0,107330.0,7.68885321]
[1748528177532,6.94824452,107340.0,107330.0,7.6813939]
[1748528177759,6.92809216,107340.0,107330.0,7.67393459]
[1748528177976,6.95616439,107340.0,107330.0,7.67393459]
[1748528178199,6.49708417,107340.0,107330.0,7.66647528]
[1748528178426,6.91917314,107340.0,107330.0,7.66647528]
[1748528178642,6.91917325,107340.0,107330.0,7.66647528]
[1748528179314,6.91885325,107340.0,107330.0,7.63212868]
[1748528179523,6.91248195,107340.0,107330.0,7.63212868]
[1748528179739,6.91885368,107340.0,107330.0,7.63212868]
[1748528179951,6.91885368,107340.0,107330.0,7.62815019]
[1748528180166,6.91857413,107340.0,107330.0,7.62815019]
[1748528180412,6.46997413,107340.0,107330.0,7.62815019]
[1748528180632,6.91212195,107340.0,107330.0,7.62815019]
[1748528180853,11.96849422,107340.0,107330.0,7.58227866]
[1748528181090,11.96885422,107340.0,107330.0,7.58227866]
[1748528181306,11.96248195,107340.0,107330.0,7.58227866]
[1748528181997,11.9688562,107340.0,107330.0,7.58227866]
[1748528182223,11.98160474,107340.0,107330.0,7.58227866]
[1748528182457,11.97523046,107340.0,107330.0,7.58227866]
[1748528182697,11.98160473,107340.0,107330.0,7.58227866]
[1748528182909,11.98160372,107340.0,107330.0,7.58227866]
[1748528183140,11.98120354,107340.0,107330.0,7.58227866]
[1748528183364,11.551843,107340.0,107330.0,7.55417741]
[1748528183586,12.000243,107340.0,107330.0,7.55417741]
[1748528183789,12.00661614,107340.0,107330.0,7.55417741]
[1748528183995,12.0256156,107340.0,107330.0,7.55417741]
[1748528184230,12.0319887,107340.0,107330.0,7.55417741]
[1748528184439,12.05110821,107340.0,107330.0,7.55417741]
[1748528184581,12.05110831,107340.0,107330.0,7.55417741]
[1748528184783,12.05111029,107340.0,107330.0,7.55417741]
[1748528184996,12.04473505,107340.0,107330.0,7.55417741]
[1748528185220,12.05111358,107340.0,107330.0,7.55417741]
[1748528185626,12.04473505,107340.0,107330.0,7.55397741]
[1748528186206,6.94473505,107340.0,107330.0,7.55397741]
[1748528187017,6.98184608,107340.0,107330.0,7.55397741]
[1748528188370,6.98668084,107340.0,107330.0,7.55397741]
[1748528190300,6.98784084,107340.0,107330.0,7.55397741]
[1748528190503,6.93265758,107340.0,107330.0,7.55397741]
[1748528190722,6.47321758,107340.0,107330.0,7.55397741]
[1748528190930,5.94833758,107340.0,107330.0,7.58707741]
[1748528191137,6.58257758,107340.0,107330.0,7.55397741]
[1748528191758,6.47321758,107340.0,107330.0,7.55397741]
[1748528191975,6.92253758,107340.0,107330.0,7.55397741]
[1748528192179,6.92273758,107340.0,107330.0,7.55397741]
[1748528192568,6.95050227,107340.0,107330.0,7.55397741]
[1748528192981,6.92281758,107340.0,107330.0,7.55397741]
[1748528193186,6.47321758,107340.0,107330.0,7.55397741]
[1748528193397,6.92281758,107340.0,107330.0,7.61597741]
[1748528193597,6.58833758,107340.0,107330.0,7.61597741]
[1748528193806,5.95551682,107340.0,107330.0,7.61597741]
[1748528194025,2.45684845,107340.0,107330.0,7.61597741]
[1748528194248,2.45672845,107340.0,107330.0,7.61597741]
[1748528194886,2.00740845,107340.0,107330.0,7.61597741]
[1748528195098,2.34372845,107340.0,107330.0,7.61597741]
[1748528195318,2.00740845,107340.0,107330.0,7.61597741]
[1748528195524,2.34352845,107340.0,107330.0,7.61597741]
[1748528195743,2.33863348,107340.0,107330.0,7.61597741]
[1748528198409,2.36639817,107340.0,107330.0,7.61597741]
[1748528198634,2.96639817,107340.0,107330.0,7.55397741]
[1748528198971,3.26589061,107340.0,107330.0,7.54508046]
[1748528199180,2.01025961,107340.0,107330.0,7.49777775]
[1748528199439,2.66589061,107340.0,107330.0,7.49777775]
[1748528199657,2.32981061,107340.0,107330.0,7.48337018]
[1748528199849,2.78177061,107340.0,107330.0,7.48337018]
[1748528200290,2.79634581,107340.0,107330.0,7.48337018]
[1748528200738,2.79902581,107340.0,107330.0,7.48337018]
[1748528200954,2.79902581,107340.0,107330.0,7.45117018]
[1748528201171,2.79902581,107340.0,107330.0,7.43603078]
[1748528201172,2.8267905,107340.0,107330.0,7.43603078]
[1748528201379,2.8267905,107340.0,107330.0,7.43122454]
[1748528201597,2.79902581,107340.0,107330.0,7.43122454]
[1748528202491,2.8267905,107340.0,107330.0,7.43122454]
[1748528202919,3.1267905,107340.0,107330.0,7.43122454]
[1748528203378,3.1267905,107340.0,107330.0,7.29751333]
[1748528203620,3.1267905,107340.0,107330.0,7.04840567]
[1748528203863,3.1367905,107340.0,107330.0,6.99635341]
[1748528204077,3.141626,107340.0,107330.0,6.99635341]
[1748528204300,3.141626,107340.0,107330.0,6.91943247]
[1748528204584,3.141626,107340.0,107330.0,6.68819877]
[1748528204818,2.92327788,107340.0,107330.0,5.02692176]
[1748528205079,3.62327788,107340.0,107330.0,4.8960836]
[1748528205309,7.41764688,107340.0,107330.0,4.83340145]
[1748528205533,7.40024688,107340.0,107330.0,4.83340145]
[1748528205782,7.38624688,107340.0,107330.0,4.78720465]
[1748528206019,7.38624688,107340.0,107330.0,4.77886708]
[1748528206233,7.40224688,107340.0,107330.0,4.77886708]
[1748528206698,7.34721116,107340.0,107330.0,4.77886708]
[1748528206925,6.87859031,107340.0,107330.0,4.77886708]
[1748528207212,7.379475,107340.0,107330.0,4.77886708]
[1748528208107,7.389475,107340.0,107330.0,4.77886708]
[1748528208341,7.35123031,107340.0,107330.0,4.77886708]
[1748528208801,7.378995,107340.0,107330.0,4.77886708]
[1748528209120,7.328995,107340.0,107330.0,4.77886708]
[1748528209357,7.328715,107340.0,107330.0,4.77886708]
[1748528209562,7.378715,107340.0,107330.0,4.77886708]
[1748528209767,7.338715,107340.0,107330.0,4.77886708]
[1748528210153,7.328715,107340.0,107330.0,4.77886708]
[1748528210370,6.85759031,107340.0,107330.0,4.77886708]
[1748528210611,7.31059031,107340.0,107330.0,4.77886708]
[1748528211157,7.31544528,107340.0,107330.0,4.77886708]
[1748528212008,2.26544528,107340.0,107330.0,4.77886708]
[1748528212210,6.61544528,107340.0,107330.0,4.77628445]
[1748528212422,6.16244528,107340.0,107330.0,4.77628445]
[1748528212621,6.61488528,107340.0,107330.0,4.77628445]
[1748528213429,6.58032528,107340.0,107330.0,4.77628445]
[1748528213638,6.91488528,107340.0,107330.0,4.84088445]
[1748528213877,6.45244528,107340.0,107330.0,4.84088445]
[1748528214093,6.91464528,107340.0,107330.0,4.84088445]
[1748528214605,1.82032528,107340.0,107330.0,4.84088445]
[1748528214909,7.20436528,107340.0,107330.0,4.84088445]
[1748528214997,7.20444528,107340.0,107330.0,4.84088445]
[1748528216078,6.87032528,107340.0,107330.0,4.84088445]
[1748528216290,7.20492528,107340.0,107330.0,4.84088445]
[1748528217706,2.15492528,107340.0,107330.0,4.84088445]
[1748528217912,7.20492528,107340.0,107330.0,4.84088445]
[1748528218078,7.20492528,107340.0,107330.0,4.77628445]
[1748528218286,7.23268997,107340.0,107330.0,4.77628445]
[1748528218484,7.24268997,107340.0,107330.0,4.77628445]
[1748528220485,6.79020997,107340.0,107330.0,4.77628445]
[1748528220683,7.24176997,107340.0,107330.0,4.77628445]
[1748528221087,7.24176997,107340.0,107330.0,4.80658445]
[1748528222518,3.63721197,107340.0,107330.0,4.80658445]
[1748528222720,3.41506897,107340.0,107330.0,4.80658445]
[1748528222928,3.41506897,107340.0,107330.0,4.83868445]
[1748528222929,2.74743328,107340.0,107330.0,4.83868445]
[1748528223247,3.05333615,107340.0,107330.0,4.83868445]
[1748528223440,5.61617015,107340.0,107330.0,4.83868445]
[1748528223639,5.94921015,107340.0,107330.0,4.83868445]
[1748528223861,4.08973315,107340.0,107330.0,4.83868445]
[1748528224063,1.07033318,107340.0,107330.0,4.83868445]
[1748528224597,0.43033318,107340.0,107330.0,4.83868445]
[1748528224806,0.31986853,107340.0,107330.0,4.93119567]
[1748528225012,0.65242853,107340.0,107330.0,4.83868445]
[1748528225221,0.74348248,107340.0,107330.0,4.83868445]
[1748528225434,0.77124717,107340.0,107330.0,4.83868445]
[1748528225832,1.04848248,107340.0,107330.0,4.83868445]
[1748528226229,1.08148248,107340.0,107330.0,4.83868445]
[1748528226734,1.06248248,107340.0,107330.0,4.83868445]
[1748528227107,1.07848248,107340.0,107330.0,4.83868445]
[1748528227470,1.06448248,107340.0,107330.0,4.86423051]
[1748528227665,1.06448248,107340.0,107330.0,4.83868445]
[1748528227956,1.07748248,107340.0,107330.0,4.83868445]
[1748528228394,0.74492248,107340.0,107330.0,4.83868445]
[1748528228599,1.07884248,107340.0,107330.0,4.83868445]
[1748528229341,0.74492248,107340.0,107330.0,4.83868445]
[1748528229549,1.07844248,107340.0,107330.0,4.83868445]
[1748528230428,1.10620717,107340.0,107330.0,4.83868445]
[1748528231255,1.07844248,107340.0,107330.0,4.83868445]
[1748528231456,2.13654574,107340.0,107330.0,4.83868445]
[1748528231660,2.13654574,107340.0,107330.0,4.77628445]
[1748528231661,2.16161841,107340.0,107330.0,4.77628445]
[1748528231884,2.27657841,107340.0,107330.0,4.77628445]
[1748528233305,2.27657841,107340.0,107330.0,4.80658445]
[1748528233906,2.30456641,107340.0,107330.0,4.80658445]
[1748528235770,2.27694784,107340.0,107330.0,4.80658445]
[1748528236679,2.30456641,107340.0,107330.0,4.77628445]
[1748528236881,2.30456641,107340.0,107330.0,4.77613267]
[1748528237908,2.01456641,107340.0,107330.0,4.77613267]
[1748528238764,2.01248641,107340.0,107330.0,4.77613267]
[1748528238955,1.98486784,107340.0,107330.0,4.77613267]
[1748528239491,1.52846784,107340.0,107330.0,4.77613267]
[1748528239717,0.95127048,107340.0,107330.0,4.911444]
[1748528239937,1.25376248,107340.0,107330.0,4.84063267]
[1748528240161,1.55376248,107340.0,107330.0,4.84063267]
[1748528240373,2.22883515,107340.0,107330.0,4.84063267]
[1748528240782,2.51883515,107340.0,107330.0,4.84063267]
[1748528241416,2.54659984,107340.0,107330.0,4.84063267]
[1748528241876,2.25659984,107340.0,107330.0,4.77613267]
[1748528243595,2.25659984,107340.0,107330.0,4.80653267]
[1748528244037,2.25659984,107340.0,107330.0,4.77613267]
[1748528244458,1.99875926,107340.0,107330.0,4.77613267]
[1748528245410,2.22803515,107340.0,107330.0,4.80623267]
[1748528245824,2.22803515,107340.0,107330.0,4.40623267]
[1748528246034,2.19903515,107340.0,107330.0,4.40623267]
[1748528246421,2.23303515,107340.0,107330.0,4.40623267]
[1748528246618,2.53303515,107340.0,107330.0,4.43693267]
[1748528247038,2.56079984,107340.0,107330.0,4.43693267]
[1748528248578,2.56079984,107340.0,107330.0,4.37613267]
[1748528249196,2.55947984,107340.0,107330.0,4.43883267]
[1748528249430,2.55951984,107340.0,107330.0,4.37613267]
[1748528249695,2.55951984,107340.0,107330.0,4.43883267]
[1748528249696,2.52175515,107340.0,107330.0,4.43883267]
[1748528249921,2.52171515,107340.0,107330.0,4.43883267]
[1748528250143,1.89335515,107340.0,107330.0,4.43883267]
[1748528250405,2.22175515,107340.0,107330.0,4.43883267]
[1748528250611,1.29335515,107340.0,107330.0,4.43883267]
[1748528250834,0.83771515,107340.0,107330.0,4.43883267]
[1748528251048,0.81264248,107340.0,107330.0,4.43883267]
[1748528251476,1.14088248,107340.0,107330.0,4.43883267]
[1748528252099,1.14056248,107340.0,107330.0,4.43883267]
[1748528252318,1.48056248,107340.0,107330.0,4.43883267]
[1748528252547,1.14056248,107340.0,107330.0,4.43883267]
[1748528253048,1.48056248,107340.0,107330.0,4.43883267]
[1748528253510,1.50832717,107340.0,107330.0,4.43883267]
[1748528253743,1.48056248,107340.0,107330.0,4.43883267]
[1748528253981,1.53339984,107340.0,107330.0,4.43883267]
[1748528254907,1.53339984,107340.0,107330.0,4.37613267]
[1748528254908,1.87587797,107340.0,107330.0,4.37613267]
[1748528255146,1.58041882,107340.0,107330.0,4.37613267]
[1748528255842,1.58528644,107340.0,107330.0,4.37613267]
[1748528257204,1.56628644,107340.0,107330.0,4.37613267]
[1748528257425,1.57028644,107340.0,107330.0,4.37613267]
[1748528257853,1.56628644,107340.0,107330.0,4.37613267]
[1748528258086,2.26628644,107340.0,107330.0,4.37613267]
[1748528258316,6.85595944,107340.0,107330.0,4.37613267]
[1748528259447,2.28528644,107340.0,107330.0,4.37613267]
[1748528260154,2.26628644,107340.0,107330.0,4.37613267]
[1748528260410,2.25128644,107340.0,107330.0,4.37613267]
[1748528260618,2.27228644,107340.0,107330.0,4.37613267]
[1748528260857,2.28928644,107340.0,107330.0,4.37613267]
[1748528261098,2.28928644,107340.0,107330.0,4.36385186]
[1748528261304,1.96136644,107340.0,107330.0,4.36385186]
[1748528261510,2.39964644,107340.0,107330.0,4.36385186]
[1748528262018,2.07352644,107340.0,107330.0,4.36385186]
[1748528262267,2.39940644,107340.0,107330.0,4.36385186]
[1748528262508,7.74940644,107340.0,107330.0,4.36385186]
[1748528263493,7.69398318,107340.0,107330.0,4.36385186]
[1748528264386,7.3959619,107340.0,107330.0,4.36385186]
[1748528264647,7.74936659,107340.0,107330.0,4.36385186]
[1748528265272,7.42372659,107340.0,107330.0,4.36385186]
[1748528265487,7.26156659,107340.0,107330.0,4.36385186]
[1748528265704,7.69908659,107340.0,107330.0,4.36385186]
[1748528266176,7.21156659,107340.0,107330.0,4.36385186]
[1748528266395,7.64900659,107340.0,107330.0,4.36385186]
[1748528266610,7.64888659,107340.0,107330.0,4.36385186]
[1748528266822,6.95590787,107340.0,107330.0,4.36385186]
[1748528267030,7.37648845,107340.0,107330.0,4.36385186]
[1748528267714,7.76648845,107340.0,107330.0,4.36385186]
[1748528268618,7.79448545,107340.0,107330.0,4.36385186]
[1748528269300,7.79448545,107340.0,107330.0,4.35899192]
[1748528269523,7.74404545,107340.0,107330.0,4.35899192]
[1748528271320,7.80000545,107340.0,107330.0,4.35899192]
[1748528273128,7.36320545,107340.0,107330.0,4.35899192]
[1748528273344,7.79916545,107340.0,107330.0,4.35899192]
[1748528273780,7.84916545,107340.0,107330.0,4.35899192]
[1748528273984,7.79916545,107340.0,107330.0,4.35899192]
[1748528274816,7.84916545,107340.0,107330.0,4.35899192]
[1748528275028,7.79916545,107340.0,107330.0,4.35899192]
[1748528276802,7.79916545,107340.0,107330.0,4.34383644]
[1748528277553,7.89723545,107340.0,107330.0,4.34383644]
[1748528278341,7.90366666,107340.0,107330.0,4.34383644]
[1748528278548,7.90366666,107340.0,107330.0,4.33727845]
[1748528278991,7.9036669,107340.0,107330.0,4.33727845]
[1748528279198,7.90366682,107340.0,107330.0,4.33727845]
[1748528279408,7.89723545,107340.0,107330.0,4.33727845]
[1748528280480,7.89539545,107340.0,107330.0,4.33727845]
[1748528282489,7.85739545,107340.0,107330.0,4.32987845]
[1748528282689,7.87739545,107340.0,107330.0,4.32987845]
[1748528282904,7.92739545,107340.0,107330.0,2.97586172]
[1748528283112,7.92739545,107340.0,107330.0,2.15237078]
[1748528283321,7.95039545,107340.0,107330.0,0.86653255]
[1748528283530,1.52665143,107330.0,107320.0,1e-08]
[1748528283786,7.74680805,107330.0,107320.0,1e-08]
[1748528283981,8.17752805,107330.0,107320.0,1e-08]
[1748528284190,8.2092732,107330.0,107320.0,1e-08]
[1748528284612,8.2558761,107330.0,107320.0,1e-08]
[1748528284832,7.0714832,107330.0,107320.0,1e-08]
[1748528285108,7.0714832,107330.0,107310.0,0.03290001]
[1748528285109,1.1856763,107320.0,107310.0,0.03290001]
[1748528285318,7.20180292,107320.0,107310.0,0.06340001]
[1748528285526,7.07352292,107320.0,107310.0,0.13740898]
[1748528285733,7.38523864,107320.0,107310.0,0.13740898]
[1748528285942,7.35331864,107320.0,107310.0,0.13740898]
[1748528286149,7.24451864,107320.0,107310.0,0.13740898]
[1748528286356,7.69528789,107320.0,107310.0,0.13740898]
[1748528286576,7.70528789,107320.0,107310.0,0.13740898]
[1748528286779,7.28910874,107320.0,107310.0,0.13740898]
[1748528286985,6.28156789,107320.0,107310.0,0.13740898]
[1748528287186,1.03156789,107320.0,107310.0,0.13740898]
[1748528287400,0.10412095,107320.0,107310.0,0.13840898]
[1748528287653,0.23266953,107330.0,107310.0,0.11023863]
[1748528287654,0.01386264,107330.0,107310.0,0.11023863]
[1748528287868,0.5175963,107320.0,107310.0,0.21632524]
[1748528288079,0.1956763,107320.0,107310.0,0.21399559]
[1748528288281,0.66497291,107340.0,107310.0,0.29196596]
[1748528288498,0.1956763,107320.0,107310.0,0.03439182]
[1748528288705,0.8578363,107320.0,107310.0,0.03439182]
[1748528288915,5.90233315,107320.0,107310.0,0.03439182]
[1748528289133,6.51233315,107320.0,107310.0,0.03439182]
[1748528289348,6.90805025,107320.0,107310.0,0.03439182]
[1748528289554,6.90849025,107320.0,107310.0,0.03439182]
[1748528289769,6.6430311,107320.0,107310.0,0.03539182]
[1748528289981,6.3440311,107320.0,107310.0,0.03539182]
[1748528290191,6.3440311,107320.0,107310.0,0.03306027]
[1748528290420,6.3480311,107320.0,107310.0,0.03206027]
[1748528290620,6.3648311,107320.0,107310.0,0.03206027]
[1748528290847,6.4094311,107320.0,107310.0,0.03306027]
[1748528291017,6.435034,107320.0,107310.0,0.03306027]
[1748528291242,5.9142711,107320.0,107310.0,0.03306027]
[1748528291688,6.3456311,107320.0,107310.0,0.03306027]
[1748528292445,6.3436311,107320.0,107310.0,0.03306027]
[1748528292866,6.3576311,107320.0,107310.0,0.03406027]
[1748528293069,1.44501307,107310.0,107300.0,1.05629513]
[1748528293309,6.09501307,107310.0,107300.0,1.05629513]
[1748528293561,1.23606702,107310.0,107300.0,1.05629513]
[1748528293794,1.69525902,107310.0,107300.0,1.05629513]
[1748528294262,6.97066192,107310.0,107300.0,1.05629513]
[1748528294725,6.53966192,107310.0,107300.0,1.05629513]
[1748528294955,6.63285902,107310.0,107300.0,1.05729513]
[1748528295264,6.74303987,107310.0,107300.0,1.05729513]
[1748528295475,6.87160117,107310.0,107300.0,1.05829513]
[1748528296186,6.84836448,107310.0,107300.0,1.05829513]
[1748528296657,6.39056117,107310.0,107300.0,0.95272197]
[1748528296882,6.87296117,107310.0,107300.0,0.95272197]
[1748528297970,6.44056117,107310.0,107300.0,0.95272197]
[1748528298244,6.90273833,107310.0,107300.0,0.95272197]
[1748528298781,6.87802164,107310.0,107300.0,0.95272197]
[1748528299078,6.90273833,107310.0,107300.0,0.95272197]
[1748528299361,6.87882164,107310.0,107300.0,0.95272197]
[1748528300009,7.57882164,107310.0,107300.0,0.95272197]
[1748528300235,7.52882164,107310.0,107300.0,0.95272197]
[1748528300468,7.60353833,107310.0,107300.0,0.95272197]
[1748528300694,7.18723362,107310.0,107300.0,3e-08]
[1748528300912,7.59615693,107310.0,107300.0,3e-08]
[1748528302306,7.62087362,107310.0,107300.0,3e-08]
[1748528302809,7.57087362,107310.0,107300.0,3e-08]
[1748528303034,7.59009568,107310.0,107300.0,3e-08]
[1748528303298,6.51655362,107300.0,107290.0,0.03993961]
[1748528303520,7.01462003,107300.0,107290.0,0.03993961]
[1748528303736,7.44092066,107300.0,107290.0,0.03993961]
[1748528304203,7.4582682,107300.0,107290.0,0.03993961]
[1748528304420,7.50858779,107300.0,107290.0,0.03993961]
[1748528304634,7.50958779,107300.0,107290.0,0.03993961]
[1748528304847,7.50978779,107300.0,107290.0,0.03993961]
[1748528305060,7.45978779,107300.0,107290.0,0.03993961]
[1748528305241,7.50978779,107300.0,107290.0,0.03993961]
[1748528305425,7.51578779,107300.0,107290.0,0.03993961]
[1748528305637,7.52678779,107300.0,107290.0,0.04093961]
[1748528306577,7.58275779,107300.0,107290.0,0.04093961]
[1748528307244,7.5324382,107300.0,107290.0,0.04093961]
[1748528307455,6.8324382,107300.0,107290.0,0.04093961]
[1748528307654,6.8580411,107300.0,107290.0,0.04093961]
[1748528310318,7.5580411,107300.0,107290.0,0.04093961]
[1748528310581,7.5578411,107300.0,107290.0,0.04093961]
[1748528310813,6.78188672,107290.0,107280.0,0.0148575]
[1748528310990,6.92771228,107290.0,107280.0,0.0148575]
[1748528311195,6.32771228,107290.0,107280.0,0.0148575]
[1748528311530,6.35571828,107290.0,107280.0,0.0148575]
[1748528311968,6.39081538,107290.0,107280.0,0.0148575]
[1748528312183,6.26164667,107290.0,107280.0,0.0158575]
[1748528312395,6.69516667,107290.0,107280.0,0.0158575]
[1748528313011,6.70970752,107290.0,107280.0,0.0158575]
[1748528313840,6.38618752,107290.0,107280.0,0.0158575]
[1748528314051,6.70942752,107290.0,107280.0,0.0158575]
[1748528314272,6.38618752,107290.0,107280.0,0.0158575]
[1748528314472,6.70930752,107290.0,107280.0,0.0158575]
[1748528317691,6.38618752,107290.0,107280.0,0.0158575]
[1748528317910,6.70854752,107290.0,107280.0,0.0158575]
[1748528318160,6.78833105,107290.0,107280.0,0.0158575]
[1748528318367,6.81749976,107290.0,107280.0,0.0156575]
[1748528318605,6.85019976,107290.0,107280.0,0.0156575]
[1748528318821,6.87978484,107290.0,107280.0,0.0156575]
[1748528319445,6.85506815,107290.0,107280.0,0.0156575]
[1748528319667,6.84506815,107290.0,107280.0,0.0156575]
[1748528320533,6.84061613,107290.0,107280.0,0.0156575]
[1748528320751,6.49557073,107280.0,107270.0,0.0405988]
[1748528320965,6.61586853,107280.0,107270.0,0.0405988]
[1748528321826,6.58662468,107280.0,107270.0,0.0405988]
[1748528322054,6.5991175,107280.0,107270.0,0.0415988]
[1748528323616,6.6247204,107280.0,107270.0,0.0415988]
[1748528324277,6.64943709,107280.0,107270.0,0.0415988]
[1748528324502,6.68607972,107280.0,107270.0,0.0415988]
[1748528325198,6.62576013,107280.0,107270.0,0.0415988]
[1748528326636,7.32576013,107280.0,107270.0,0.0415988]
[1748528327525,7.2891175,107280.0,107270.0,0.0415988]
[1748528327761,7.34235089,107280.0,107270.0,0.0405988]
[1748528328011,0.92673017,107270.0,107260.0,2e-08]
[1748528328256,7.10708434,107270.0,107260.0,2e-08]
[1748528328491,6.40708434,107270.0,107260.0,2e-08]
[1748528329223,6.42208434,107270.0,107260.0,0.00100002]
[1748528329751,6.43008434,107270.0,107260.0,0.00100002]
[1748528330887,6.47116639,107260.0,107250.0,0.04670064]
[1748528331166,6.62135014,107260.0,107250.0,0.04670064]
[1748528331395,6.65786668,107260.0,107250.0,0.04670064]
[1748528331621,7.67990668,107260.0,107250.0,0.04670064]
[1748528331845,7.82096063,107260.0,107250.0,0.04670064]
[1748528332061,7.81816078,107260.0,107250.0,0.04670064]
[1748528332709,7.82516078,107260.0,107250.0,0.04670064]
[1748528332909,7.77516078,107260.0,107250.0,0.04670064]
[1748528333118,7.82516078,107260.0,107250.0,0.04670064]
[1748528333600,7.77516078,107260.0,107250.0,0.04670064]
[1748528333827,7.82516078,107260.0,107250.0,0.04670064]
[1748528334239,7.83002917,107260.0,107250.0,0.04670064]
[1748528334448,7.71998917,107260.0,107250.0,0.04670064]
[1748528334648,7.23436948,107260.0,107250.0,0.04670064]
[1748528334862,7.27080572,107260.0,107250.0,0.04670064]
[1748528335278,6.81340241,107260.0,107250.0,0.04670064]
[1748528335482,7.29556241,107260.0,107250.0,0.04670064]
[1748528335698,7.40947906,107260.0,107250.0,0.04670064]
[1748528335904,7.37862416,107260.0,107250.0,0.04670064]
[1748528336159,6.89646416,107260.0,107250.0,0.04670064]
[1748528336376,7.35987747,107260.0,107250.0,0.04670064]
[1748528336798,7.3187376,107260.0,107250.0,0.04670064]
[1748528337010,7.2627676,107260.0,107250.0,0.04670064]
[1748528337225,7.22084572,107260.0,107250.0,0.04670064]
[1748528337831,7.22080572,107260.0,107250.0,0.04670064]
[1748528338711,7.22080572,107260.0,107250.0,0.04660064]
[1748528338972,7.23080572,107260.0,107250.0,0.04660064]
[1748528339296,6.51858197,107260.0,107250.0,0.04660064]
[1748528339508,6.79701067,107260.0,107250.0,0.04660064]
[1748528339713,7.13701067,107260.0,107250.0,0.04660064]
[1748528339908,7.16891067,107260.0,107250.0,0.04660064]
[1748528340115,7.22102617,107260.0,107250.0,0.04660064]
[1748528340757,7.25746241,107260.0,107250.0,0.04660064]
[1748528340965,7.25746241,107260.0,107210.0,0.00010055]
[1748528340966,1.49204486,107250.0,107210.0,0.00010055]
[1748528341176,7.445948,107250.0,107240.0,0.0305001]
[1748528341439,7.48238424,107250.0,107240.0,0.0305001]
[1748528342305,7.48238424,107250.0,107220.0,0.02080163]
[1748528342306,6.71038138,107230.0,107220.0,0.02080163]
[1748528342560,6.94547686,107230.0,107220.0,0.02080163]
[1748528342739,6.97635704,107230.0,107220.0,0.02080163]
[1748528343173,6.38587707,107210.0,107200.0,0.05406494]
[1748528343384,6.59373102,107210.0,107200.0,0.05406494]
[1748528343600,6.59373102,107210.0,107200.0,0.05420227]
[1748528345115,6.19549464,107210.0,107200.0,0.05420227]
[1748528345283,1.28281464,107210.0,107200.0,0.05420227]
[1748528345897,1.28381464,107210.0,107200.0,0.05420227]
[1748528346737,0.94649464,107210.0,107200.0,0.05420227]
[1748528346946,0.65741497,107210.0,107200.0,0.05420227]
[1748528347159,0.64285135,107210.0,107200.0,0.05420227]
[1748528347571,0.65741497,107210.0,107200.0,0.05420227]
[1748528347781,0.66833773,107210.0,107200.0,0.05420227]
[1748528347981,0.6574174,107210.0,107200.0,0.05420227]
[1748528348597,0.6854334,107210.0,107200.0,0.05420227]
[1748528349238,0.67451064,107210.0,107200.0,0.05420227]
[1748528349929,0.68544032,107210.0,107200.0,0.05420227]
[1748528350175,0.6708767,107210.0,107200.0,0.05420227]
[1748528350666,0.98092205,107210.0,107200.0,0.05420227]
[1748528350876,0.68092175,107210.0,107200.0,0.05420227]
[1748528351103,0.66635808,107210.0,107200.0,0.05420227]
[1748528351330,6.33054632,107210.0,107200.0,0.05420227]
[1748528351576,6.31596966,107210.0,107200.0,0.05420227]
[1748528351804,6.60955889,107210.0,107200.0,0.05420227]
[1748528352038,6.61596961,107210.0,107200.0,0.05420227]
[1748528352466,6.65383887,107210.0,107200.0,0.05420227]
[1748528352679,1.00422693,107210.0,107200.0,0.05420227]
[1748528352979,1.43078887,107210.0,107200.0,0.02060231]
[1748528353183,1.42204155,107210.0,107200.0,0.02060231]
[1748528353408,1.42204153,107210.0,107200.0,0.02060231]
[1748528353828,1.44824875,107210.0,107200.0,0.02060231]
[1748528354451,1.44183424,107210.0,107200.0,0.02060231]
[1748528354663,1.44825455,107210.0,107200.0,0.02060231]
[1748528355334,1.44183424,107210.0,107200.0,0.02060231]
[1748528355560,1.44825456,107210.0,107200.0,0.02060231]
[1748528356207,1.44825457,107210.0,107200.0,0.02060231]
[1748528356925,1.44725457,107210.0,107200.0,0.02060231]
[1748528357137,6.69725508,107210.0,107200.0,0.02060231]
[1748528357340,7.02637702,107210.0,107200.0,0.02060231]
[1748528357545,7.11314042,107210.0,107200.0,0.02060231]
[1748528357973,7.11314059,107210.0,107200.0,0.02060231]
[1748528358188,0.53589534,107200.0,107190.0,0.04513993]
[1748528358409,0.63337108,107200.0,107190.0,0.04518918]